bitfinex-derivatives/quotes_ETHF0:USTF0_20250614
["timestamp","ask_amount","ask_price","bid_price","bid_amount"]
[1749859759749,4.19717563,2574.1,2574.0,0.77665]
[1749859760345,0.77666,2574.0,2573.9,0.77665]
[1749859760546,0.98937563,2574.0,2573.9,0.77665]
[1749859761451,1.76602563,2574.0,2573.9,0.77665]
[1749859761655,1.76592147,2574.0,2573.9,0.77665]
[1749859762251,0.77669,2573.9,2573.8,0.77669]
[1749859762553,0.98927147,2573.9,2573.8,0.77669]
[1749859763643,1.76595147,2573.9,2573.8,0.77669]
[1749859763845,2.43665147,2573.9,2573.8,0.77669]
[1749859764150,1.65997147,2573.9,2573.8,0.77669]
[1749859766646,0.98927147,2573.9,2573.8,0.77669]
[1749859766851,0.99081725,2574.0,2573.7,3.20353]
[1749859767153,9.6128,2574.1,2573.8,2.03841]
[1749859767154,0.99081725,2573.9,2573.8,2.03841]
[1749859768850,0.99081725,2573.9,2573.8,2.70801]
[1749859770751,0.99081725,2573.9,2573.8,1.2617]
[1749859770959,0.77674,2573.7,2573.6,0.00583181]
[1749859771156,1.76755725,2573.7,2573.6,0.00583181]
[1749859772155,4.07433562,2573.7,2573.6,0.00583181]
[1749859772456,4.07433562,2573.7,2573.1,3.28707]
[1749859772457,5.99081725,2573.7,2573.3,0.77685]
[1749859772650,3.09383114,2573.5,2573.3,0.77685]
[1749859772859,4.08464839,2573.4,2573.3,0.77685]
[1749859773051,4.08464839,2573.4,2573.1,1.3448]
[1749859773251,0.99081725,2573.3,2573.2,0.77689]
[1749859773447,0.77687,2573.3,2573.2,0.77687]
[1749859773651,0.99231208,2573.3,2573.2,0.77689]
[1749859773949,0.99231208,2573.3,2573.1,0.77691]
[1749859773950,0.7769,2573.2,2573.1,0.77691]
[1749859774152,0.99231208,2573.2,2573.1,0.77691]
[1749859774349,0.99231208,2573.2,2573.1,0.77692]
[1749859775755,0.99231208,2573.2,2573.1,2.13702]
[1749859776060,1.76826462,2573.2,2573.1,0.77692]
[1749859776657,0.99137462,2573.2,2573.1,0.77692]
[1749859779164,4.19917462,2573.2,2573.1,0.77692]
[1749859783072,0.77692,2573.1,2573.0,0.00583181]
[1749859783358,28.50419462,2573.1,2572.4,1.8718]
[1749859783554,3.2078,2572.7,2572.4,1.8718]
[1749859783755,3.98485,2572.7,2572.6,0.77707]
[1749859783963,7.28707294,2572.7,2572.6,0.77707]
[1749859784160,7.91917294,2572.7,2572.6,0.77707]
[1749859784360,5.60766944,2572.7,2572.6,0.77707]
[1749859784561,5.60767944,2572.7,2572.6,0.77707]
[1749859785366,4.83061944,2572.7,2572.6,0.77707]
[1749859785566,0.99071944,2572.7,2572.6,0.77707]
[1749859786261,1.76775944,2572.7,2572.6,0.77707]
[1749859786562,0.99071944,2572.7,2572.4,1.87763181]
[1749859786865,0.98973609,2572.6,2572.5,0.77709]
[1749859787060,0.7771,2572.5,2572.4,1.87763181]
[1749859787362,0.98973609,2572.5,2572.4,0.78296181]
[1749859787969,0.98973609,2572.5,2572.4,2.10416181]
[1749859788660,1.76683609,2572.5,2572.4,1.32703181]
[1749859788967,0.98973609,2572.5,2572.4,2.10416181]
[1749859789468,0.98973609,2572.5,2572.4,2.17225449]
[1749859792366,0.77706,2572.7,2572.6,0.77707]
[1749859792566,1.76655593,2572.7,2572.6,0.77707]
[1749859794266,0.7771,2572.5,2572.4,0.07392449]
[1749859794466,4.97439593,2572.5,2572.4,0.07392449]
[1749859794864,1.94292,2572.3,2571.8,0.7773]
[1749859795064,0.7773,2571.9,2571.7,0.77732]
[1749859795263,0.7773,2571.9,2571.6,1.9516]
[1749859795264,1.76682593,2571.8,2571.6,2.72896]
[1749859795562,0.77734,2571.7,2571.6,2.72896]
[1749859795766,0.77743,2571.5,2571.3,0.77744]
[1749859796063,0.7774,2571.5,2571.4,0.00583181]
[1749859796266,1.76643835,2571.5,2571.4,0.00583181]
[1749859798267,0.98903835,2571.5,2571.4,0.00583181]
[1749859798573,8.20043835,2571.5,2571.4,0.00583181]
[1749859802773,31.66903835,2571.5,2571.4,0.78326181]
[1749859803573,0.98903835,2571.5,2571.4,0.78326181]
[1749859803964,0.98903835,2571.5,2571.4,0.00583181]
[1749859804174,1.76643835,2571.5,2571.4,0.00583181]
[1749859804675,1.76643835,2571.5,2571.4,0.07392449]
[1749859805670,0.98903835,2571.5,2571.4,0.85135449]
[1749859806069,3.2078,2571.7,2571.6,0.77737]
[1749859806269,4.19508318,2571.7,2571.6,0.77737]
[1749859806871,3.2078,2571.7,2571.6,0.77737]
[1749859807071,3.2078,2571.7,2571.6,5.77737]
[1749859807768,0.00583181,2571.9,2571.8,0.77731]
[1749859814588,0.00583181,2571.9,2571.8,5.77731]
[1749859815184,0.00583181,2571.9,2571.8,7.03381]
[1749859815587,0.00583181,2571.9,2571.8,10.24161]
[1749859815892,3.8583,2572.6,2572.5,0.7771]
[1749859816192,4.84868028,2572.6,2572.5,0.7771]
[1749859816792,5.62575028,2572.6,2572.5,1.3718]
[1749859817293,5.62575028,2572.6,2572.5,2.1489]
[1749859818192,4.84868028,2572.6,2572.5,2.1489]
[1749859819394,5.62575028,2572.6,2572.5,1.3718]
[1749859819598,5.62575028,2572.6,2572.5,2.1489]
[1749859820998,5.62575028,2572.6,2572.5,2.21699268]
[1749859821700,4.63537,2572.6,2572.5,2.21699268]
[1749859821895,5.62559329,2572.6,2572.5,2.21699268]
[1749859823390,5.62559329,2572.6,2572.5,0.06809268]
[1749859823596,10.62559329,2572.6,2572.5,0.06809268]
[1749859823903,7.93236553,2572.6,2572.5,0.06809268]
[1749859824399,4.19802329,2572.6,2572.5,0.84519268]
[1749859826093,4.97509329,2572.6,2572.5,0.84519268]
[1749859828999,4.97509329,2572.6,2572.5,0.06809268]
[1749859829199,4.97509329,2572.6,2572.5,0.84519268]
[1749859832395,4.97509329,2572.6,2572.5,0.06809268]
[1749859832595,4.97615679,2572.6,2572.5,0.06809268]
[1749859833500,4.97615679,2572.6,2572.5,0.84519268]
[1749859833902,4.97615679,2572.6,2572.5,0.06809268]
[1749859835105,4.97615679,2572.6,2572.5,0.84519268]
[1749859835497,7.28292903,2572.6,2572.5,0.84519268]
[1749859837605,4.97615679,2572.6,2572.5,0.84519268]
[1749859837804,6.51762412,2572.6,2572.5,0.84519268]
[1749859838205,5.52633733,2572.6,2572.5,0.84519268]
[1749859838402,6.52041423,2572.6,2572.5,0.84519268]
[1749859838607,0.9940769,2572.6,2572.5,0.84519268]
[1749859839101,0.9940769,2572.6,2572.5,2.73919268]
[1749859841303,4.9789569,2572.6,2572.5,0.06809268]
[1749859842515,4.9789569,2572.6,2572.5,0.84520268]
[1749859842910,0.9940769,2572.6,2572.5,0.84520268]
[1749859843407,0.9940769,2572.6,2572.5,3.52570268]
[1749859854023,0.91432061,2572.6,2572.5,3.52570268]
[1749859855115,0.91432061,2572.6,2572.5,2.86790268]
[1749859859826,0.78285181,2572.8,2572.7,0.77705]
[1749859860314,0.77708,2572.6,2572.5,0.06809268]
[1749859860628,3.2078,2572.6,2571.5,3.2078]
[1749859860822,0.77741,2571.5,2571.4,0.00583181]
[1749859861215,0.77759,2570.9,2570.8,1.9369]
[1749859861528,0.77757,2571.0,2570.9,0.77759]
[1749859861712,3.2078,2571.1,2570.4,3.2078]
[1749859861917,0.6279,2571.0,2570.8,0.77762]
[1749859862122,0.77759,2570.9,2570.8,0.77762]
[1749859862322,0.77759,2570.9,2570.7,0.77763]
[1749859862625,0.6279,2571.0,2570.7,0.77763]
[1749859862827,0.77765,2570.7,2570.6,0.00583181]
[1749859863324,0.77765,2570.7,2569.8,3.2078]
[1749859863325,0.77789,2569.9,2569.8,3.2078]
[1749859863523,0.77789,2569.9,2569.2,6.36]
[1749859863524,3.2078,2570.1,2569.3,2.0229]
[1749859863721,26.43265682,2570.5,2569.3,2.0229]
[1749859863722,3.2078,2569.8,2569.3,2.0229]
[1749859863922,9.5678,2570.1,2570.0,0.77786]
[1749859864226,9.5678,2570.3,2570.0,0.77785]
[1749859864427,10.35143181,2570.3,2569.7,1.3546]
[1749859864725,10.35143181,2570.3,2570.2,0.7778]
[1749859864726,0.00583181,2570.3,2570.2,0.7778]
[1749859865421,0.00583181,2570.3,2569.8,6.362]
[1749859865617,3.21363181,2570.3,2569.9,1.2677]
[1749859865813,3.21363181,2570.3,2570.2,0.7778]
[1749859866016,3.21363181,2570.3,2570.1,0.77781]
[1749859866214,3.21363181,2570.3,2569.9,1.2677]
[1749859866420,3.21363181,2570.3,2570.2,0.7778]
[1749859866632,3.21363181,2570.3,2569.9,1.2677]
[1749859866818,3.2078,2570.0,2569.3,3.8761]
[1749859867018,0.00583181,2570.3,2570.2,0.7778]
[1749859867019,3.21363181,2570.3,2570.2,0.7778]
[1749859867327,0.00583181,2570.3,2570.2,0.7778]
[1749859868724,3.21363181,2570.3,2569.6,3.2078]
[1749859869025,5.16393181,2570.3,2569.8,0.7779]
[1749859869226,0.77785,2570.1,2569.8,0.77791]
[1749859869426,3.2078,2569.9,2569.5,1.3211]
[1749859870323,7.14087,2570.0,2569.7,0.77793]
[1749859870527,6.363,2569.9,2569.7,0.77793]
[1749859870727,6.363,2569.9,2569.8,0.77792]
[1749859871725,9.5708,2569.9,2569.8,0.77792]
[1749859872121,9.5708,2569.9,2569.3,0.6583]
[1749859872431,3.2078,2569.9,2569.5,1.94499]
[1749859872620,3.2078,2569.9,2569.4,1.2606]
[1749859872823,3.98571,2569.9,2569.7,0.77794]
[1749859873236,3.2078,2569.9,2569.2,3.2078]
[1749859873528,6.364,2569.8,2569.7,0.77795]
[1749859874037,6.364,2569.8,2569.3,1.2606]
[1749859874236,0.77797,2569.7,2569.5,0.77799]
[1749859874432,6.364,2569.8,2569.6,0.77798]
[1749859874627,6.365,2569.8,2569.7,0.77795]
[1749859875025,6.365,2569.8,2569.3,3.20575]
[1749859875325,6.365,2569.8,2569.7,0.77795]
[1749859875926,7.14292,2569.8,2569.6,0.77797]
[1749859876125,7.14292,2569.8,2569.7,0.77795]
[1749859876934,6.365,2569.8,2569.7,0.77795]
[1749859877130,3.2078,2569.9,2569.8,0.77792]
[1749859877434,9.5738,2569.9,2569.8,0.77792]
[1749859878129,3.2078,2569.9,2569.8,0.77792]
[1749859878835,3.2078,2570.2,2569.6,5.15277]
[1749859879032,6.99713181,2570.3,2570.2,0.7778]
[1749859881738,0.63113181,2570.3,2570.2,0.7778]
[1749859883040,0.00583181,2570.3,2570.2,0.7778]
[1749859883929,0.6518,2570.7,2570.6,0.77768]
[1749859884130,3.2078,2570.8,2570.7,0.77765]
[1749859885642,3.2078,2570.8,2570.7,2.01675]
[1749859886139,3.2078,2570.8,2570.7,1.2391]
[1749859887536,4.1987384,2570.8,2570.7,1.2391]
[1749859887936,4.9763584,2570.8,2570.7,1.2391]
[1749859888137,0.77768,2570.6,2570.5,0.00583181]
[1749859888438,0.77768,2570.6,2569.9,1.9534]
[1749859888439,1.94432,2570.5,2569.9,1.9534]
[1749859888641,0.77788,2570.0,2569.8,0.06809268]
[1749859888947,0.9909384,2569.9,2569.8,0.06809268]
[1749859889539,0.99484981,2569.9,2569.8,11.43309268]
[1749859889734,3.08534682,2570.6,2570.1,0.77781]
[1749859889940,0.77772,2570.5,2570.2,2.8035]
[1749859890247,0.77774,2570.4,2570.3,1.3421]
[1749859890447,5.51545682,2570.5,2569.8,0.06809268]
[1749859890740,1.94426,2570.6,2569.8,0.06809268]
[1749859890741,4.25757467,2570.3,2569.8,0.06809268]
[1749859890943,6.423,2570.2,2569.8,0.06809268]
[1749859891142,0.77789,2569.9,2569.8,0.06809268]
[1749859892733,3.09102467,2569.9,2569.8,0.06809268]
[1749859892938,0.77789,2569.9,2569.8,0.06809268]
[1749859893544,3.09102467,2569.9,2569.8,0.06809268]
[1749859894144,5.0,2569.9,2568.8,3.2078]
[1749859894440,1.77066945,2570.4,2569.8,3.2078]
[1749859894644,3.8898,2571.5,2570.4,1.94436]
[1749859894841,0.77746,2571.4,2570.9,3.2078]
[1749859895034,3.8898,2571.5,2571.1,0.7775]
[1749859895236,3.87583929,2572.0,2571.4,3.2078]
[1749859895440,0.00583181,2572.0,2571.7,0.77733]
[1749859895635,0.00583181,2572.0,2571.9,0.77729]
[1749859895939,0.00583181,2572.0,2571.8,4.501]
[1749859895940,0.00583181,2572.0,2571.8,1.2932]
[1749859896148,0.77741,2571.5,2571.4,0.00583181]
[1749859896442,6.424,2571.6,2571.4,0.00583181]
[1749859896760,0.77741,2571.5,2571.4,0.00583181]
[1749859897037,7.2014,2571.6,2571.4,0.00583181]
[1749859897643,0.77741,2571.5,2571.4,0.00583181]
[1749859898238,3.2078,2571.7,2571.4,0.00583181]
[1749859898437,9.6308,2571.7,2571.4,0.78325181]
[1749859898737,9.6308,2571.7,2571.4,0.00583181]
[1749859899439,9.6308,2571.7,2571.5,0.77741]
[1749859899631,3.2078,2571.7,2571.6,0.77738]
[1749859899838,3.2078,2571.7,2571.5,0.77739]
[1749859900037,3.2078,2571.7,2571.6,2.09458]
[1749859900637,3.2078,2571.7,2571.6,1.3172]
[1749859900839,3.21363181,2572.0,2571.9,0.77729]
[1749859901446,3.21363181,2572.0,2571.6,4.525]
[1749859901641,3.21363181,2572.0,2571.7,1.3179]
[1749859901843,3.21363181,2572.0,2571.9,0.77729]
[1749859902146,3.21363181,2572.0,2571.8,0.7773]
[1749859902357,3.21363181,2572.0,2571.9,2.09519]
[1749859903548,0.00583181,2572.0,2571.9,2.09519]
[1749859904045,0.00583181,2572.0,2571.9,5.30299]
[1749859904946,0.00583181,2572.0,2571.9,2.09519]
[1749859905147,0.00583181,2572.0,2571.9,5.30299]
[1749859908743,0.00583181,2572.0,2571.9,2.09519]
[1749859909553,0.00583181,2572.0,2571.9,5.30299]
[1749859910446,0.00583181,2572.0,2571.9,5.37108268]
[1749859910844,0.00583181,2572.0,2571.9,2.16328268]
[1749859911746,0.00583181,2572.0,2571.9,5.37108268]
[1749859916446,0.78309181,2572.0,2571.9,0.84538268]
[1749859917547,0.00583181,2572.0,2571.9,0.84538268]
[1749859919348,6.45469181,2572.0,2571.9,0.06809268]
[1749859919647,6.45469181,2572.0,2571.4,0.00583181]
[1749859919648,0.7774,2571.6,2571.4,0.00583181]
[1749859919848,8.57854484,2572.0,2571.4,0.00583181]
[1749859919849,0.77741,2571.5,2571.4,0.00583181]
[1749859920045,0.7774,2571.6,2571.5,0.77741]
[1749859920244,2.0515,2571.6,2571.5,0.77741]
[1749859920453,0.77741,2571.5,2571.4,0.00583181]
[1749859920654,2.0515,2571.6,2571.4,0.78324181]
[1749859921552,2.0515,2571.6,2571.5,0.77741]
[1749859921553,1.2741,2571.6,2571.5,0.77741]
[1749859921756,0.95855964,2571.6,2571.5,0.77741]
[1749859921959,0.95855964,2571.6,2571.4,0.78326181]
[1749859922149,0.77741,2571.5,2571.4,0.78326181]
[1749859922354,0.77741,2571.5,2571.4,0.00583181]
[1749859922553,1.73692885,2571.5,2571.4,0.00583181]
[1749859922757,1.73692885,2571.5,2571.4,0.78327181]
[1749859923460,0.95951885,2571.5,2571.4,0.78327181]
[1749859923851,4.94472885,2571.5,2571.4,0.00583181]
[1749859924656,4.94472885,2571.5,2571.4,0.07392449]
[1749859925056,6.25752885,2571.5,2571.4,0.07392449]
[1749859925456,11.25752885,2571.5,2571.4,0.07392449]
[1749859925658,1.94377,2571.2,2570.5,4.4992]
[1749859925961,0.77764,2570.8,2570.5,4.4992]
[1749859926258,0.77764,2570.8,2570.7,0.77764]
[1749859926459,0.96258353,2571.0,2570.5,3.2078]
[1749859926664,0.77764,2570.8,2570.7,0.77765]
[1749859926852,0.96258353,2570.8,2570.7,0.77765]
[1749859927055,10.9538,2571.1,2570.9,0.77759]
[1749859927258,0.77759,2570.9,2570.8,0.7776]
[1749859927563,7.24559,2570.9,2570.8,0.7776]
[1749859927761,0.77767,2570.7,2570.6,0.77768]
[1749859927964,0.77764,2570.8,2570.3,0.6487]
[1749859928260,6.468,2570.9,2570.3,0.6487]
[1749859928456,2.04574,2570.8,2570.6,0.77768]
[1749859928662,0.96179518,2570.7,2570.3,0.6487]
[1749859928863,0.96179518,2570.6,2570.5,0.77771]
[1749859929160,0.96181728,2570.6,2570.5,0.77771]
[1749859929362,0.9613504,2570.6,2570.4,4.4826]
[1749859929557,0.77762,2570.8,2570.4,4.4826]
[1749859929762,1.73902307,2570.7,2570.6,0.77768]
[1749859929963,0.96135307,2570.7,2570.6,0.77768]
[1749859931474,1.73901307,2570.7,2570.3,0.6487]
[1749859931766,0.77766,2570.7,2570.6,0.77768]
[1749859932169,1.73859943,2570.7,2570.6,0.77768]
[1749859932464,0.96093943,2570.7,2570.6,0.77768]
[1749859933869,1.73858943,2570.7,2570.6,0.77768]
[1749859934071,0.96093943,2570.7,2570.6,0.77768]
[1749859934868,1.73858943,2570.7,2570.6,0.77768]
[1749859935068,3.11148943,2570.7,2570.6,0.77768]
[1749859935274,2.33383943,2570.7,2570.1,6.42717]
[1749859935567,0.77772,2570.5,2570.4,0.77772]
[1749859936163,1.3958,2570.6,2570.5,0.77771]
[1749859936467,0.77772,2570.5,2570.4,0.77772]
[1749859936864,17.58205107,2570.5,2569.7,3.2078]
[1749859937069,3.2078,2570.2,2569.7,4.519]
[1749859937271,1.39594,2570.1,2570.0,0.77785]
[1749859937461,3.2078,2570.5,2570.0,0.77785]
[1749859937768,0.00583181,2570.7,2570.6,0.77768]
[1749859938063,1.81e-06,2570.7,2570.6,5.77768]
[1749859938264,1.81e-06,2570.7,2570.6,0.77768]
[1749859939966,1.81e-06,2570.7,2570.6,0.84577268]
[1749859940159,0.77765181,2570.7,2570.6,0.84577268]
[1749859940365,13.20787665,2570.7,2570.6,0.06809268]
[1749859940565,8.87067665,2570.7,2570.6,0.06809268]
[1749859941167,13.87067665,2570.7,2570.6,0.06809268]
[1749859941370,0.77771,2570.5,2570.4,0.00583181]
[1749859941671,3.98551,2570.5,2570.4,0.00583181]
[1749859941870,4.94573484,2570.5,2570.4,0.00583181]
[1749859942065,4.94570056,2570.5,2570.4,0.00583181]
[1749859942467,10.63799056,2570.5,2570.4,0.78357181]
[1749859942667,11.41570056,2570.5,2570.4,0.78357181]
[1749859942870,10.63799056,2570.5,2570.4,0.78357181]
[1749859943463,11.41570056,2570.5,2570.4,0.00583181]
[1749859944467,10.63799056,2570.5,2570.4,0.00583181]
[1749859944670,11.41570056,2570.5,2570.4,0.00583181]
[1749859945761,11.41570056,2570.5,2570.4,0.78357181]
[1749859946470,11.41570056,2570.5,2570.4,0.00583181]
[1749859947175,11.41570056,2570.5,2570.4,0.78357181]
[1749859947374,11.41570056,2570.5,2570.4,0.00583181]
[1749859947574,11.41570056,2570.5,2570.4,0.78357181]
[1749859948573,11.41570056,2570.5,2570.4,0.00583181]
[1749859949369,11.41570056,2570.5,2570.4,0.78357181]
[1749859949569,11.41570056,2570.5,2570.4,0.00583181]
[1749859949767,11.41570056,2570.5,2570.4,0.78357181]
[1749859949974,11.41570056,2570.5,2570.4,0.00583181]
[1749859952276,13.7247304,2570.5,2570.4,0.00583181]
[1749859952975,13.7247304,2570.5,2570.4,0.78357181]
[1749859953180,4.16799056,2570.5,2570.4,0.78357181]
[1749859953477,10.62799056,2570.5,2570.4,0.78357181]
[1749859953977,4.16799056,2570.5,2570.4,0.78357181]
[1749859954277,0.96019056,2570.5,2570.4,0.78357181]
[1749859954777,0.96019056,2570.5,2570.4,2.72217181]
[1749859954975,0.96019056,2570.5,2570.4,2.79026449]
[1749859959375,0.96019056,2570.5,2570.4,2.01252449]
[1749859959574,8.19690056,2570.5,2570.4,0.07392449]
[1749859959775,10.5059304,2570.5,2570.4,0.07392449]
[1749859960075,8.19690056,2570.5,2570.4,0.07392449]
[1749859960277,0.77783,2570.1,2570.0,1.9313]
[1749859960579,0.77783,2570.1,2570.0,2.70916]
[1749859960780,1.73802056,2570.1,2570.0,2.70916]
[1749859960976,0.96019056,2570.1,2570.0,2.70916]
[1749859961170,2.31637553,2570.3,2570.1,0.77783]
[1749859961375,0.96565165,2570.2,2570.0,1.9313]
[1749859961575,0.96565165,2570.1,2570.0,1.9313]
[1749859961774,0.96565165,2570.1,2570.0,2.70916]
[1749859961971,0.77787,2570.0,2569.9,0.77787]
[1749859962169,0.96565165,2570.0,2569.9,0.77787]
[1749859963779,0.96565165,2570.0,2569.7,4.4557]
[1749859963981,1.74352165,2570.0,2569.9,0.77789]
[1749859964177,0.96565165,2570.0,2569.9,0.77789]
[1749859964980,4.17345165,2570.0,2569.6,0.6834]
[1749859965180,0.96565165,2569.9,2569.8,0.77792]
[1749859965481,9.37040165,2569.9,2569.0,3.2078]
[1749859965777,9.74103456,2569.8,2569.4,3.2078]
[1749859965977,0.96565165,2569.7,2569.6,0.77798]
[1749859966180,8.20363165,2569.7,2569.5,2.13239]
[1749859966382,1.74363165,2569.6,2569.5,2.13239]
[1749859966584,0.96565165,2569.6,2569.5,2.13239]
[1749859967283,1.74363165,2569.6,2569.5,2.13239]
[1749859967587,0.77803,2569.5,2569.4,0.77804]
[1749859967888,0.96565165,2569.5,2569.4,0.77804]
[1749859968179,0.96495794,2569.5,2569.4,0.77804]
[1749859969079,9.6678,2569.9,2569.2,4.5622]
[1749859969080,9.6678,2569.9,2569.8,0.77792]
[1749859969286,9.6678,2569.9,2569.4,0.06809268]
[1749859969287,0.77801,2569.5,2569.4,0.06809268]
[1749859969590,1.74314333,2569.5,2569.4,0.06809268]
[1749859969774,0.96513333,2569.5,2569.4,0.84613268]
[1749859970179,1.74314333,2569.5,2569.4,0.84613268]
[1749859971184,0.96513333,2569.5,2569.4,0.84613268]
[1749859971585,1.74314333,2569.5,2569.4,0.84613268]
[1749859972485,0.96513333,2569.5,2569.4,0.84613268]
[1749859973183,1.74314333,2569.5,2569.4,0.06809268]
[1749859973379,1.74314333,2569.5,2569.4,0.84613268]
[1749859973580,1.74314333,2569.5,2569.4,0.06809268]
[1749859973779,2.40834333,2569.5,2569.4,0.06809268]
[1749859975687,8.86934333,2569.5,2569.4,0.06809268]
[1749859978287,8.09133333,2569.5,2568.9,1.9455]
[1749859978492,7.42713333,2569.4,2569.0,1.9125]
[1749859978694,0.96513333,2569.3,2569.2,0.77811]
[1749859979303,1.74320333,2569.3,2569.2,0.77811]
[1749859980194,0.77812,2569.2,2569.0,1.9125]
[1749859980498,2.90967642,2569.1,2568.5,3.2078]
[1749859980799,2.90967642,2569.1,2568.8,0.77822]
[1749859980800,0.7782,2568.9,2568.8,0.77822]
[1749859980989,0.77823,2568.8,2568.7,1.2409]
[1749859981187,1.74240306,2568.8,2568.7,1.2409]
[1749859981397,0.77829,2568.6,2568.5,4.63752]
[1749859981596,0.77829,2568.6,2568.5,4.63751]
[1749859981795,0.77829,2568.6,2568.5,1.42971]
[1749859981998,0.77829,2568.6,2568.5,0.6514]
[1749859982294,0.77828,2568.7,2568.5,1.4297]
[1749859982702,0.77828,2568.7,2568.6,1.2409]
[1749859982901,1.74151208,2568.7,2568.6,1.2409]
[1749859983102,3.8342,2569.0,2568.6,1.2409]
[1749859983294,1.74142374,2568.9,2568.8,0.77823]
[1749859983496,1.74142374,2568.9,2568.6,1.2409]
[1749859983497,8.16244374,2568.9,2568.7,0.77824]
[1749859983696,7.19922,2568.9,2568.8,1.3244]
[1749859983896,8.16221832,2568.9,2568.8,1.3244]
[1749859984097,0.96299832,2568.9,2568.8,2.10263]
[1749859984296,7.38399832,2568.9,2568.8,2.10263]
[1749859984496,0.96299832,2568.9,2568.8,2.10263]
[1749859984700,3.2078,2569.0,2568.9,0.7782]
[1749859984999,3.2078,2569.0,2568.9,2.1026]
[1749859985208,4.94949367,2569.0,2568.9,1.3244]
[1749859985503,4.94949367,2569.0,2568.9,2.1026]
[1749859985703,4.17132367,2569.0,2568.9,2.1026]
[1749859986701,4.94949367,2569.0,2568.9,1.3244]
[1749859987198,4.94949367,2569.0,2568.9,2.1026]
[1749859987398,4.17132367,2569.0,2568.6,0.06809268]
[1749859987594,3.2078,2569.0,2568.7,1.37]
[1749859987800,3.98598,2569.0,2568.9,0.7782]
[1749859988004,4.94966673,2569.0,2568.9,0.7782]
[1749859988396,4.94966673,2569.0,2568.9,2.1482]
[1749859989101,4.94966673,2569.0,2568.9,1.37]
[1749859989307,4.17148673,2569.0,2568.9,2.1482]
[1749859990407,4.94965673,2569.0,2568.9,2.1482]
[1749859990704,4.94965673,2569.0,2568.9,1.37]
[1749859991902,4.17148673,2569.0,2568.9,2.1482]
[1749859992105,4.94965673,2569.0,2568.9,2.1482]
[1749859993111,4.17148673,2569.0,2568.9,2.1482]
[1749859994810,0.96368673,2569.0,2568.9,2.1482]
[1749859996510,0.7782,2568.9,2568.6,0.06809268]
[1749859996700,3.98606,2568.7,2568.6,0.06809268]
[1749859997010,6.4858371,2568.7,2568.6,0.06809268]
[1749859997202,4.17148673,2568.7,2568.6,5.84638268]
[1749859997402,3.2078,2569.1,2569.0,0.77817]
[1749859997604,4.17432136,2569.1,2568.7,0.6755]
[1749859997798,0.96652136,2569.0,2568.9,0.7782]
[1749859998308,0.96652136,2569.2,2568.9,0.7782]
[1749859998505,0.96657328,2569.1,2569.0,2.05527]
[1749859999413,0.96657328,2569.1,2568.7,0.6755]
[1749859999613,0.7782,2568.9,2568.8,1.3305]
[1749859999809,0.7782,2568.9,2568.3,3.2078]
[1749859999810,10.59637328,2568.9,2568.3,3.2078]
[1749860000013,0.77838,2568.3,2568.0,2.76526]
[1749860000210,0.77844,2568.1,2567.7,0.6764]
[1749860000514,0.96657328,2568.0,2567.9,0.7785]
[1749860001315,0.96657328,2568.0,2567.9,2.109]
[1749860001508,0.96657328,2568.0,2567.9,1.3305]
[1749860001709,0.96657328,2568.0,2567.9,2.109]
[1749860001912,0.96657328,2568.0,2567.9,1.3305]
[1749860002301,0.96593903,2568.0,2567.9,1.3305]
[1749860002508,0.96593903,2568.0,2567.5,0.6563]
[1749860002716,0.96593903,2567.9,2567.7,0.77856]
[1749860002905,0.78430181,2568.0,2567.7,0.77856]
[1749860002906,0.96593903,2567.8,2567.7,0.77856]
[1749860005710,0.00583181,2568.0,2567.9,0.7785]
[1749860005909,0.96998027,2568.0,2567.9,0.7785]
[1749860006116,0.00583181,2568.0,2567.9,0.7785]
[1749860007008,0.77851,2567.9,2567.6,0.6645]
[1749860007221,0.9644744,2567.8,2567.7,0.77854]
[1749860007718,1.7430044,2567.8,2567.6,0.6645]
[1749860007908,1.5939744,2567.7,2567.6,0.77859]
[1749860008713,0.9644744,2567.7,2567.6,0.77859]
[1749860008911,0.00583181,2568.0,2567.9,0.7785]
[1749860009916,0.6295,2568.4,2568.3,0.77838]
[1749860015026,0.6295,2568.4,2568.3,0.84647268]
[1749860016329,3.21363181,2568.6,2568.5,0.77832]
[1749860017028,3.21363181,2568.6,2568.5,2.10002]
[1749860017229,0.00583181,2568.6,2568.5,2.10002]
[1749860017635,0.00583181,2568.6,2568.5,5.30782]
[1749860018231,0.00583181,2568.6,2568.5,2.10002]
[1749860018431,0.00583181,2568.6,2568.5,5.30782]
[1749860018736,3.2078,2568.9,2568.8,0.77823]
[1749860019437,1.40664,2569.1,2569.0,0.77817]
[1749860020339,0.6285,2569.1,2569.0,0.77817]
[1749860020840,1.59061359,2569.1,2569.0,0.77817]
[1749860021337,2.36875359,2569.1,2569.0,0.77817]
[1749860021539,1.59061359,2569.1,2569.0,0.77817]
[1749860022434,1.59061359,2569.1,2568.7,1.3217]
[1749860022741,4.94810359,2569.0,2568.8,0.77822]
[1749860022935,0.96211359,2568.9,2568.8,0.77822]
[1749860024232,1.74033359,2568.9,2568.7,0.77824]
[1749860024437,0.96211359,2568.8,2568.7,0.77824]
[1749860024637,0.77826,2568.7,2568.6,0.77828]
[1749860024838,0.96192085,2568.7,2568.4,1.94584]
[1749860025039,0.96192961,2568.6,2568.5,2.02902]
[1749860026839,9.7308,2569.0,2568.9,0.7782]
[1749860027040,0.96221719,2569.0,2568.9,0.7782]
[1749860028237,0.96221719,2569.0,2568.9,2.0626]
[1749860031044,0.96221719,2569.0,2568.9,2.13069268]
[1749860031244,3.21363181,2569.3,2569.2,0.77811]
[1749860031446,4.17600173,2569.3,2569.2,0.77811]
[1749860032247,3.21363181,2569.3,2569.2,0.77811]
[1749860032646,4.17582758,2569.3,2569.2,0.77811]
[1749860032847,4.17582758,2569.3,2569.1,5.5002]
[1749860032848,0.77811,2569.2,2569.1,4.131]
[1749860033146,1.74030577,2569.2,2569.1,4.90914]
[1749860033547,0.96219577,2569.2,2569.1,4.90914]
[1749860036055,0.96219577,2569.2,2569.1,0.77814]
[1749860043456,0.16726577,2569.2,2569.1,0.77814]
[1749860043659,9.6078005,2569.7,2569.6,0.77798]
[1749860043660,6.15925037,2569.7,2569.6,0.77798]